Cogmind - Beta 16 @@@ ROGUE MODE // 2025.11.03 @ 21:56:23 Player: Parallel Result: Destroyed by S-10 Pest with Light Assault Rifle Performance ------------- Evolutions (0) 0 Regions Visited (2) 400 Robots Destroyed (26) 130 Value Destroyed (438) 438 Prototype IDs (0) 0 Alien Tech Used (0) 0 Bonus (0) 0 TOTAL SCORE: 968 Bonus ------- None Cogmind --------- Core Integrity 0/250 Matter 300/300 Energy 100/100 System Corruption 2% Temperature Cool (0) Movement Treading (160) Location -10/Mines Parts ------- > --- POWER (1) -------- (None) > --- PROPULSION (2) --- Light Treads Light Treads > --- UTILITY (2) ------ Small Storage Unit > --- WEAPON (2) ------- Hammer > --- INVENTORY (8) ---- Signal Interpreter Improved Terrain Scanner Light Armor Plating Datajack Mining Laser Peak State ------------ > --- POWER ------------ Ion Engine > --- PROPULSION ------- Light Treads Light Treads > --- UTILITY ---------- Small Storage Unit Seismic Detector > --- WEAPON ----------- Assault Rifle Hammer > --- INVENTORY -------- Ion Engine Light Treads Light Treads Huge Storage Unit Signal Interpreter Improved Terrain Scanner EM Pulse Gun Assault Rifle [Rating: 8] Favorites ----------- Power Ion Engine Engine Ion Engine Propulsion Light Treads Treads Light Treads Leg Aluminum Leg Utility Small Storage Unit Device Seismic Detector Storage Small Storage Unit Weapon Assault Rifle Energy Gun EM Pulse Gun Ballistic Gun Assault Rifle Impact Weapon Hammer Special Melee Weapon Datajack Build | -11 -10 -10 ------- Run | Yrd Mat Min Slots Evolved . | . . . Power . | . . . Propulsion . | . . . Utility . | . . . Weapon . | . . . Parts Attached 15 | 8 7 . Power 2 | 1 1 . Engine 2 | 1 1 . Core . | . . . Reactor . | . . . Propulsion 6 | 2 4 . Treads 4 | . 4 . Leg 2 | 2 . . Wheel . | . . . Hover . | . . . Flight . | . . . Utility 2 | 2 . . Device 1 | 1 . . Storage 1 | 1 . . Processor . | . . . Hackware . | . . . Protection . | . . . Artifact . | . . . Weapon 5 | 3 2 . Energy Gun 1 | 1 . . Energy Cannon . | . . . Ballistic Gun 2 | 2 . . Ballistic Cannon . | . . . Launcher . | . . . Special Weapon . | . . . Impact Weapon 1 | . 1 . Slashing Weapon . | . . . Piercing Weapon . | . . . Special Melee Weapon 1 | . 1 . Unidentified Prototypes . | . . . Parts Lost 6 | . . 6 Power 1 | . . 1 Propulsion 2 | . . 2 Utility 1 | . . 1 Weapon 2 | . . 2 Highest Loss Streak 4 | . . 4 To Critical Strikes . | . . . Average Backups 6 | 2 6 7 Power . | . . . Propulsion 1 | . 1 1 Utility 2 | . 2 3 Weapon 1 | 1 1 1 Tool/Special . | . . . Unused Backups 5 | . 1 4 Power . | . . . Propulsion . | . . . Utility 4 | . 1 3 Weapon 1 | . . 1 Tool/Special . | . . . Average Slot Usage (%) 90 | . 98 82 Engine 13 | . 14 13 Treads 21 | . 17 23 Leg 4 | . 10 . Device 10 | . 12 9 Storage 14 | . 14 14 Ballistic Gun 20 | . 23 18 Impact Weapon 3 | . 4 2 Peak Build Rating 8 | 7 8 8 Average Rating 6 | 5 7 6 On Entrance 4 | . 7 7 Avg Prop Armor Cover (%) . | . . . Naked Turns . | . . . Heaviest Build 15 | 15 15 15 Greatest Support 40 | 20 40 40 Greatest Overweight (x) . | . . . Average Overweight (x) . | . . . Largest Inventory Capacity 8 | 8 8 8 Average Capacity 7 | 7 8 8 Most Carried 8 | 5 8 8 Average Carried 6 | 2 6 7 Final Capacity 8 | 8 8 8 Final Carried 7 | 3 7 5 Class Distribution -------------------- 100% | Mutant Dominant Class ---------------- Mutant | -10/Materials Mutant | -10/Mines Resources | -11 -10 -10 ----------- Run | Yrd Mat Min Matter Collected 768 | 344 305 119 Remotely . | . . . Salvage Created 749 | 161 393 195 Parts 51 | 13 28 10 Haulers Intercepted 1 | . 1 . Recyclers Shooed . | . . . Parts Field Recycled . | . . . Retrieved Matter . | . . . Parts Self-Destructed . | . . . Prevented . | . . . Parts Restored . | . . . Kills | -11 -10 -10 ------- Run | Yrd Mat Min Combat Hostiles Destroyed 16 | . 11 5 Melee 2 | . 1 1 Guns 13 | . 10 3 Classes Destroyed 7 | 2 5 . Tunneler 5 | 4 . 1 Hauler 1 | . 1 . Recycler 2 | 1 . 1 Operator 1 | . 1 . Watcher 1 | . 1 . Swarmer 10 | . 5 5 Grunt 6 | . 6 . Best Kill Streak 5 | 3 5 3 Combat Bots Only 5 | . 5 3 Max Kills in Single Turn 1 | 1 1 1 Gunslinging . | . . . Exploded . | . . . Melee 1 | . 1 1 Uniques/NPCs Destroyed . | . . . Combat | -11 -10 -10 -------- Run | Yrd Mat Min Hostile Shots Fired 110 | . 51 59 Missed 23 | . 14 9 Hits 87 | . 37 50 Projectile 87 | . 37 50 AOE 9 | . . 9 Critical Strikes 1 | . . 1 Damage Taken 1154 | . 417 737 Core 254 | . 47 207 Absorbed by Shields . | . . . Core Remaining (%) 100 | 100 . . Volleys Fired 54 | 11 33 10 Largest 2 | 2 2 2 Hottest 40 | 40 40 40 Shots Fired 104 | 22 63 19 Gun 104 | 22 63 19 Cannon . | . . . Launcher . | . . . Special . | . . . Kinetic 104 | 22 63 19 Thermal . | . . . Explosive . | . . . Electromagnetic . | . . . Robot Hit Streak 10 | 5 9 10 Robot Miss Streak 3 | 1 3 3 Penetration Max . | . . . Secondary Targets 2 | . 2 . Max Gunslinging Chain 1 | . 1 . Shots Hit Robots 76 | 16 45 15 Core Hits 30 | 6 19 5 Critical Kills 1 | . . 1 Critical Parts Destroyed 1 | . 1 . Critical Strikes 2 | . 1 1 Destroy 1 | . 1 . Smash 1 | . . 1 Melee Attacks 23 | . 11 12 Impact 23 | . 11 12 Slashing . | . . . Piercing . | . . . Sneak Attacks 3 | . 2 1 Combat Hostiles . | . . . Follow-up Attacks . | . . . Damage Inflicted 1207 | 205 676 326 Guns 837 | 205 512 120 Cannons . | . . . Explosions . | . . . Melee 370 | . 164 206 Ramming . | . . . Kinetic 837 | 205 512 120 Thermal . | . . . Explosive . | . . . Electromagnetic . | . . . Impact 370 | . 164 206 Slashing . | . . . Piercing . | . . . Highest Corruption 2 | . 2 2 Average Corruption 2 | . 2 2 Corruption Purged . | . . . Corruption Blocked . | . . . Effects 24 | . 10 14 Message Errors 8 | . 3 5 Matter Fused 5 | . 2 3 Heat Flow Errors 4 | . 2 2 Energy Discharges 2 | . 1 1 Parts Fused 1 | . . 1 Data Loss (minor) 2 | . . 2 Misfires 1 | . 1 . Alerts 1 | . 1 . Overload Shots . | . . . Overflow Damage 62 | . 18 44 Projectiles . | . . . Explosions . | . . . Melee 62 | . 18 44 Knockbacks 3 | . 1 2 Impact 3 | . 1 2 Kinetic . | . . . Secondary . | . . . Self-Inflicted Damage . | . . . Shots . | . . . Rammed . | . . . Targets Rammed . | . . . Kicked . | . . . Crushed . | . . . Highest Temperature 268 | . 268 116 Average Temperature 74 | . 78 62 Received Heat Transfer 174 | . 162 12 Siege Activations . | . . . Martial Activations . | . . . Shielding Activations . | . . . Robots Disrupted . | . . . Combat Hostiles . | . . . Robots Corrupted 3 | . 1 2 Combat Hostiles 1 | . . 1 Parts Fried 3 | . 2 1 Impact Corruptions 4 | . 1 3 Robots Melted . | . . . Combat Hostiles . | . . . Parts Melted . | . . . Heat Transferred . | . . . Parts Sabotaged . | . . . Parts Stolen . | . . . Parts Stripped . | . . . Power Chain Reactions . | . . . Alert | -11 -10 -10 ------- Run | Yrd Mat Min Maximum Alert Level . | . . . Low Security (%) 100 | 100 100 100 Level 1 . | . . . Level 2 . | . . . Level 3 . | . . . Level 4 . | . . . Level 5 . | . . . High Security . | . . . Max Security . | . . . Peak Influence 135 | 5 135 60 Initial 34 | . . 34 Average 38 | 1 79 8 Influence Increases 596 | 25 411 160 Destroy 0b10 Robot/C 320 | . 220 100 Destroy 0b10 Robot/NC 50 | 25 15 10 Destroy Leader 74 | . 54 20 Successful Hack 16 | . 16 . Disable Machine 60 | . 60 . Destroy Structure 1 | . 1 . Lose Combat Pursuer 75 | . 45 30 Influence Decreases 562 | 25 322 215 Entered New Map 55 | . . 55 Time Decay 496 | 25 322 149 Lost Part 11 | . . 11 Squads Dispatched 2 | . 2 . Investigation . | . . . Extermination . | . . . Reinforcement 2 | . 2 . Assault . | . . . Garrison . | . . . Intercept . | . . . Searches Triggered . | . . . Construction Impeded . | . . . Haulers Reinforced . | . . . Active Scanning Responses . | . . . Cargo Convoy Interrupts . | . . . Stealth | -11 -10 -10 --------- Run | Yrd Mat Min Distress Signals 3 | . 3 . Communications Jammed . | . . . Distress Signals . | . . . Times Spotted 28 | . 20 8 Peak Tracking Total 4 | . 4 3 Tactical Retreats 4 | . 3 1 Traps | -11 -10 -10 ------- Run | Yrd Mat Min Traps Triggered 2 | . 2 . Indirectly . | . . . Trap Hack Attempts . | . . . Triggered . | . . . Disarmed . | . . . Reprogrammed . | . . . Reused . | . . . Traps Extracted . | . . . Installed . | . . . Triggered . | . . . Machines | -11 -10 -10 ---------- Run | Yrd Mat Min Machines Disabled 4 | . 4 . Max in Single Turn 1 | . 1 . Machines Repaired . | . . . Machines Dismantled . | . . . Machines Sabotaged . | . . . Overloaded Fab Kills . | . . . Hacking | -11 -10 -10 --------- Run | Yrd Mat Min Machines Accessed 5 | . 5 . Terminals 5 | . 5 . Fabricators . | . . . Repair Stations . | . . . Recycling Units . | . . . Scanalyzers . | . . . Garrison Access . | . . . Total Hacks 13 | . 13 . Successful 7 | . 7 . Failed 6 | . 6 . Catastrophic 1 | . 1 . Database Lockouts . | . . . Manual 12 | . 12 . Terminals 13 | . 13 . Fabricators . | . . . Repair Stations . | . . . Recycling Units . | . . . Scanalyzers . | . . . Garrison Access . | . . . Terminal Hacks 2 | . 2 . Record 1 | . 1 . Terminal Index 1 | . 1 . Fabricator Hacks . | . . . Repair Station Hacks . | . . . Recycling Unit Hacks . | . . . Scanalyzer . | . . . Garrison Access Hacks . | . . . Unauthorized Hacks 4 | . 4 . Terminals 4 | . 4 . Botnet 1 | . 1 . Skim 3 | . 3 . Fabricators . | . . . Repair Stations . | . . . Recycling Units . | . . . Scanalyzers . | . . . Garrison Access . | . . . Data Cores Recovered . | . . . Used . | . . . Hacking Detections 5 | . 5 . Full Trace Events 1 | . 1 . Feedback Events . | . . . Feedback Blocked . | . . . Robot Schematics Acquired . | . . . Robots Built . | . . . Authchips . | . . . Time . | . . . Total Robot Build Rating . | . . . Part Schematics Acquired . | . . . Parts Built . | . . . Authchips . | . . . Time . | . . . Total Part Build Rating . | . . . Part Studies Acquired . | . . . Parts Repaired . | . . . Time . | . . . Parts Recycled . | . . . Recycled Matter . | . . . Retrieved Matter . | . . . Retrieved Components . | . . . Parts Scanalyzed . | . . . Part Schematics Acquired . | . . . Parts Damaged . | . . . Bothacking | -11 -10 -10 ------------ Run | Yrd Mat Min Used RIF Installer . | . . . Robots Hacked . | . . . Non-combat . | . . . Combat . | . . . Robot Hacks Applied . | . . . Relay Couplers Released . | . . . Fabnet Peak Effective % . | . . . Robots Rewired . | . . . Allies Hacked . | . . . Hacks Repelled . | . . . Allies | -11 -10 -10 -------- Run | Yrd Mat Min Total Allies . | . . . Largest Group . | . . . Highest-Rated Group . | . . . Highest-Rated Ally . | . . . Total Orders . | . . . Ally Attacks . | . . . Total Damage . | . . . Kills . | . . . Allies Corrupted . | . . . Allies Melted . | . . . Intel | -11 -10 -10 ------- Run | Yrd Mat Min Active Infowar (turns) 1305 | 7 714 584 Seismic 1305 | 7 714 584 Robot Analysis Total . | . . . Derelict Logs Recovered 1 | . . 1 Drone Launches . | . . . Drone Recoveries . | . . . Exploration | -11 -10 -10 ------------- Run | Yrd Mat Min Turns Passed 1807 | 142 767 898 Spaces Moved 993 | 79 410 504 Core 5 | 5 . . Treads 730 | . 226 504 Legs 258 | 74 184 . Wheels . | . . . Hover . | . . . Flight . | . . . Fastest Speed 50 | 50 120 160 Average Speed 149 | 115 142 160 Slowest Speed 160 | 120 160 160 Overloaded Moves . | . . . Propulsion Burnouts . | . . . Robots Hopped . | . . . Potential Cave-ins . | . . . Cave-ins Triggered . | . . . Exploration Rate (%) 53 | 5 81 74 Regions Visited 2 Branch Regions 1 Pre-discovered Areas . | . . . Known Exits Taken . | . . . Unknown Exits Taken 2 | 1 1 . Scrap Searched 1 | . . 1 Spaces Dug 1 | . 1 . Terrain Destroyed 1 | . 1 . Melee 1 | . 1 . Projectile . | . . . AOE . | . . . Terrain Rammed . | . . . Walls Destroyed . | . . . Machines Disabled . | . . . Actions | -11 -10 -10 --------- Run | Yrd Mat Min Total 1174 | 107 511 556 Wait 56 | . 31 25 Move 991 | 78 409 504 Hop . | . . . Pick Up 20 | 10 9 1 Fast Attach 1 | . 1 . Attach 12 | 7 2 3 Detach . | . . . Swap 11 | 1 9 1 Drop 6 | . 6 . Fire 54 | 11 33 10 Melee 23 | . 11 12 Ram . | . . . Kick . | . . . Crush . | . . . Escape Stasis . | . . . Rewire . | . . . Trap . | . . . Miscellaneous . | . . . Route ------- -11/Scrapyard -10/Materials (discovered 5 exits: [*Mat x3] / [*Min x2]) -10/Mines (discovered 1 exit: [*Mat]) History --------- Turn | Location | Event 39 | -11/Scrapyard | Discovered new exit (range 16) 143 | -11/Scrapyard | Entered Materials 271 | -10/Materials | Discovered new exit (range 12) 309 | -10/Materials | Build established: Mutant 342 | -10/Materials | Discovered new exit (range 10) 505 | -10/Materials | Discovered new exit (range 16) 737 | -10/Materials | Discovered new exit (range 14) 743 | -10/Materials | Derelicts attacked the area 887 | -10/Materials | Discovered new exit (range 14) 910 | -10/Materials | Entered Mines 1007 | -10/Mines | Discovered new exit (range 5) 1013 | -10/Mines | Learned Materials terminal intel 1181 | -10/Mines | Assembled infested the area 1497 | -10/Mines | Core integrity fell below 50% 1501 | -10/Mines | Core integrity fell below 20% 1525 | -10/Mines | Lost 4 parts (1n1u2w) 1808 | -10/Mines | Destroyed by S-10 Pest with Light Assault Rifle Last Messages --------------- 01776_ S-10 Pest destroyed. 01778_ Acquired 5 matter. 01779_ K-01 Serf cleans the Core Extractor. 01783_ Destroyed Flight Unit. 01783_ S-10 Pest system corrupted by crushing effect. 01783_ K-01 Serf collects debris. 01787_ S-10 Pest IFF system glitched. 01787_ K-01 Serf collects debris. 01788_ S-10 Pest IFF system glitched. 01789_ 7GY IZ ZM62HS8LSV6 V:GY 01798_ S-10 Pest IFF system glitched. 01798_ Lgt. Treads destroyed. 01799_ Destroyed Flight Unit. 01799_ S-10 Pest system corrupted by crushing effect. 01799_ S-10 Pest knocked back. 01800_ S-10 Pest system terminally corrupted. 01802_ Acquired 10 matter. 01804_ K-01 Serf collects debris. Map ----- +----------------------------------------------------+ | ????????????????# ##????????????????# | | ????????????????# ##???????????????## | | ?????????????????# ###??????????????# | | ?????????????????# ##?????????????? | | ??????????????????# ##????????????? | | ?????????????????## ##???????????? | | ?????????????????# ####????????? | | ????????????###### #????????# | | ??????????# """ ########## | | ??????????# ###### ## """ *%=! | | ?????????????????# ### """ #####!### ## | | ?????????????????# #?# ##???# #?# ## | | ???????????####?## #### #????# #?# # | | ??????????## ## ### ###### ### | | ??????????# ## ## | | ????????### ### #### #### | | ????????# ### ##??# #### | | ????????# # """ #?####???# | | ?????????##?## """ ##???????####### # | | ?????????????## """ ##????????????# # | | ??????????????## % ##??????????## ## | | ???????????????## ##?????????# #? | | ????????????????# ##????????# #? | | ????????????????# =%k #????????# #? | | ????????????????# #????????## ##? | | ????????????????# @ #### ##?????????####?? | | ????????????????# s ##???###???????????????? | | ????????????????# ##??????????????????????? | | ????????????????# #???????????????????????? | | ???????????????# #??????????????????????? | | ??????????????# ?????????????????????? | | ?????????????# ????????????????????? | | ????????????# ######???????????????????? | | ??????????? #????????????????????????? | | ?????????? ????????????????????????? | | ????????? ????????????????????????? | | ???????? #????????????????????????? | | ???????? #######?????????????????????????? | | ?????????##????????????????????????????????? | | ???????????????????????????????????????????? | | ???????????????????????????????????????????? | | ???????????????????????????????????????????? | | ???????????????????????????????????????????? | | | | | | | | | | | | | | | +----------------------------------------------------+ Best States ------------- Heat Dissipation 25 Energy Generation 10 Energy Capacity 250 Matter Stores 300 Matter Capacity 300 Sight Range 16 Terrain Scan Density 10 Evasion (%) 55 Recoil Reduction 2 Item Schematics ----------------- None Robot Schematics ------------------ None Fabricated ------------ Nothing Repaired ---------- Nothing Studied --------- None Alien Tech Used ----------------- None Achievements -------------- None Challenges ------------ None Game ------ Seed IonicMinesnifferBroadsword Manual? 0 Play Time 00:13:28 Cumulative 43.4 hours Start 2025.11.03 @ 21:43:15 End 2025.11.03 @ 21:56:23 Sessions 1 Manual Loads 0 Difficulty Rogue Special Mode None Game No. 46 Rogue 36 Adventurer 10 Explorer 0 Win Type - Total 0 Types 0/0/0/0/0/0/0/0/0/0 Lore% 40 Gallery% 33 Achievement% 25 Wizard Run 0 Options --------- Layout 1 ASCII 0 Keyboard 0 Movement Mouse Keybinds 0 Fullscreen 2 Font 32/Smallcaps Map View 50x35 Zoom Use 0% Tactical HUD 1 Map Filters NONE Filters NONE Steam 1 RUN: 0a936eb5-3e2c-446a-bb5f-e142d04fc9fd